bitfinex/quotes_SOLUSD_20260208
["timestamp","ask_amount","ask_price","bid_price","bid_amount"]
[1770554826622,0.72100001,87.915,87.876,11.37967135]
[1770554826828,0.47536026,87.914,87.876,11.37967135]
[1770554827028,1.19636027,87.914,87.876,11.37967135]
[1770554827332,0.47536026,87.912,87.876,11.37967135]
[1770554827529,0.1,87.94,87.876,11.37967135]
[1770554827530,0.1,87.94,87.877,0.4930946]
[1770554827734,0.1,87.94,87.887,0.4930946]
[1770554827942,0.47536026,87.939,87.892,0.4930946]
[1770554829347,0.1,87.94,87.892,0.4930946]
[1770554829948,0.1,87.94,87.899,0.4930946]
[1770554830130,0.1,87.94,87.901,0.4930946]
[1770554830331,0.1,87.94,87.903,0.4930946]
[1770554830535,0.1,87.94,87.904,1.13760465]
[1770554830738,0.1,87.94,87.905,0.4930946]
[1770554832346,0.57536026,87.94,87.906,39.8152572]
[1770554832642,56.82779864,87.986,87.906,39.8152572]
[1770554832643,0.47536026,87.969,87.916,0.4930946]
[1770554833449,0.47536026,87.969,87.918,0.4930946]
[1770554833644,0.47536026,87.969,87.92,0.4930946]
[1770554834040,0.47536026,87.969,87.925,0.45676604]
[1770554835350,0.47536026,87.969,87.927,0.45676604]
[1770554835752,0.47536026,87.969,87.926,39.80620066]
[1770554835753,1e-08,87.98,87.93,0.45676604]
[1770554835936,1e-08,87.98,87.945,0.45676604]
[1770554836249,1e-08,87.98,87.95,0.45676604]
[1770554838151,1e-08,87.98,87.952,0.45676604]
[1770554840352,1e-08,87.98,87.954,0.45676604]
[1770554840657,28.3971273,88.038,87.954,0.45676604]
[1770554840658,0.45936945,88.032,87.955,0.45676604]
[1770554840851,45.37988908,88.145,87.964,0.45676604]
[1770554840852,0.45936945,88.04,87.964,0.45676604]
[1770554841033,0.45936945,88.04,87.976,0.45676604]
[1770554841946,0.45936945,88.038,87.976,0.45676604]
[1770554842345,0.45936945,88.038,87.977,39.78312513]
[1770554843238,0.45936945,88.038,87.977,40.23989117]
[1770554843460,0.45936945,88.038,87.978,0.45676604]
[1770554843643,0.45936945,88.036,87.978,0.45676604]
[1770554843841,0.45936945,88.059,87.993,0.45676604]
[1770554844143,0.45936945,88.059,88.006,0.45676604]
[1770554844960,0.45936945,88.059,87.994,0.45676604]
[1770554845257,0.45936945,88.058,87.994,0.45676604]
[1770554845642,0.45936945,88.058,87.996,0.45676604]
[1770554847162,0.45936945,88.058,87.995,39.77498721]
[1770554847163,7.14778986,88.073,88.001,0.45676604]
[1770554847370,7.14778986,88.073,88.025,5.13032502]
[1770554847538,0.45936945,88.072,88.036,0.45676604]
[1770554848073,0.45936945,88.08,88.042,0.45676604]
[1770554848361,28.3707302,88.119,88.038,5.36086188]
[1770554848362,0.55936945,88.09,88.044,0.45676604]
[1770554848763,0.1,88.09,88.045,5.36086188]
[1770554848939,0.1,88.09,88.061,0.45676604]
[1770554849255,7.15074699,88.14,88.084,0.45676604]
[1770554849648,7.15074699,88.14,88.086,0.45676604]
[1770554849849,39.69649195,88.169,88.092,0.45676604]
[1770554851151,0.45936945,88.168,88.092,0.45676604]
[1770554851864,0.45936945,88.166,88.097,0.45676604]
[1770554852841,0.45936945,88.166,88.093,39.7307391]
[1770554852842,0.45936945,88.166,88.093,11.35163974]
[1770554853041,0.45936945,88.163,88.085,11.35255423]
[1770554853260,0.45936945,88.163,88.051,5.36086188]
[1770554853261,0.45936945,88.163,88.086,0.45676604]
[1770554853460,0.45936945,88.163,88.099,5.81762792]
[1770554853639,0.45936945,88.163,88.1,0.45676604]
[1770554853845,0.45936945,88.161,88.105,0.45676604]
[1770554855456,0.45936945,88.161,88.101,39.72713136]
[1770554855659,0.45936945,88.161,88.101,11.35060896]
[1770554855959,0.49210262,88.159,88.092,39.73119011]
[1770554856151,0.59210262,88.17,88.104,0.49240968]
[1770554856358,1e-08,88.18,88.139,0.49240968]
[1770554856563,0.49210262,88.179,88.144,0.49240968]
[1770554857962,0.49210262,88.179,88.126,39.71586137]
[1770554858144,0.49210262,88.177,88.126,39.71586137]
[1770554858344,0.49210262,88.177,88.126,11.34738896]
[1770554858650,0.49210262,88.174,88.091,0.49240968]
[1770554858857,0.49210262,88.174,88.079,0.49240968]
[1770554859176,0.49210262,88.174,88.067,56.77438743]
[1770554859177,0.49210262,88.174,88.096,11.35117719]
[1770554859347,0.49210262,88.174,88.101,11.35058397]
[1770554860166,5.13032502,88.17,88.101,11.35058397]
[1770554860363,0.49210262,88.169,88.101,11.35058397]
[1770554860857,39.6946911,88.173,88.102,0.49240968]
[1770554860858,0.49210262,88.172,88.102,0.49240968]
[1770554861059,1e-08,88.18,88.109,5.13032502]
[1770554861250,1e-08,88.18,88.125,0.49240968]
[1770554862169,1e-08,88.18,88.129,5.13032502]
[1770554862467,1e-08,88.18,88.13,0.49240968]
[1770554864947,1e-08,88.18,88.132,0.49240968]
[1770554866161,1e-08,88.18,88.131,11.34674518]
[1770554866358,1e-08,88.18,88.112,0.49240968]
[1770554866566,1e-08,88.18,88.12,11.34804744]
[1770554866785,1e-08,88.18,88.114,11.34880553]
[1770554866957,1e-08,88.18,88.103,11.35035129]
[1770554867852,0.49210262,88.179,88.097,11.35104265]
[1770554868053,0.49210262,88.179,88.093,49.51752711]
[1770554868369,0.49210262,88.179,88.093,49.46774337]
[1770554868954,0.49210262,88.179,88.074,11.35402885]
[1770554869278,5.13032502,88.175,88.067,0.5]
[1770554869646,5.13032502,88.175,88.06,11.35587081]
[1770554870048,5.13032502,88.174,88.06,11.85587081]
[1770554870350,5.13032502,88.174,88.05,0.5]
[1770554870552,5.13032502,88.17,88.05,0.5]
[1770554870756,5.13032502,88.166,88.05,0.5]
[1770554870956,5.13032502,88.166,88.053,11.35670212]
[1770554871157,101.54046509,88.165,88.053,11.35670212]
[1770554871456,101.54046509,88.165,88.054,0.5]
[1770554873275,158.25231219,88.165,88.046,11.35768285]
[1770554873478,158.25231219,88.165,88.046,11.85768285]
[1770554873977,158.25231219,88.165,88.051,11.35704745]
[1770554874177,158.25231219,88.165,88.051,11.85704745]
[1770554874560,168.21370803,88.165,88.051,11.85704745]
[1770554874958,168.21370803,88.165,88.006,56.81402521]
[1770554874959,168.21370803,88.165,88.052,0.5]
[1770554878481,111.50186093,88.165,88.053,0.5]
[1770554879183,168.21370803,88.165,88.053,0.5]
[1770554880080,225.1964116,88.165,88.053,0.5]
[1770554880284,285.52897278,88.165,88.026,0.5]
[1770554880479,85.08128097,88.151,88.028,11.36000233]
[1770554880685,5.13032502,88.146,88.029,0.5]
[1770554881482,5.13032502,88.142,88.029,0.5]
[1770554882990,5.13032502,88.138,88.031,0.5]
[1770554883671,5.13032502,88.134,88.031,0.5]
[1770554884667,5.13032502,88.134,88.03,39.759173]
[1770554884668,96.43639167,88.141,88.034,0.5]
[1770554884985,96.41014007,88.165,88.039,0.5]
[1770554885372,5.13032502,88.162,88.039,0.5]
[1770554886387,96.41014007,88.165,88.039,0.5]
[1770554886689,5.13032502,88.162,88.039,0.5]
[1770554886892,96.41014007,88.165,88.039,0.5]
[1770554887182,5.13032502,88.162,88.043,5.13032502]
[1770554887493,5.13032502,88.162,88.044,0.5]
[1770554888489,5.13032502,88.162,88.035,56.79559266]
[1770554888490,5.13032502,88.158,88.049,0.5]
[1770554890393,5.13032502,88.154,88.051,0.5]
[1770554892490,5.13032502,88.15,88.053,0.5]
[1770554894998,5.13032502,88.146,88.055,0.5]
[1770554895296,5.13032502,88.142,88.055,0.5]
[1770554896580,5.13032502,88.142,88.048,5.13032502]
[1770554896581,5.13032502,88.138,88.048,0.5]
[1770554897188,73.61032502,88.138,88.033,0.5]
[1770554897600,5.13032502,88.138,88.043,0.5]
[1770554897897,5.13032502,88.138,88.048,0.5]
[1770554898786,5.13032502,88.134,88.048,0.5]
[1770554901200,5.13032502,88.13,88.023,0.5]
[1770554901403,5.13032502,88.13,88.032,0.5]
[1770554902396,5.13032502,88.126,88.032,0.5]
[1770554903685,5.13032502,88.126,88.034,0.5]
[1770554904397,5.13032502,88.122,88.036,0.5]
[1770554906697,5.13032502,88.118,88.036,0.5]
[1770554908604,96.46265759,88.117,88.036,0.5]
[1770554908800,5.13032502,88.114,88.036,0.5]
[1770554909187,5.13032502,88.114,88.038,0.5]
[1770554910889,5.13032502,88.11,88.04,0.5]
[1770554911107,5.13032502,88.106,88.04,0.5]
[1770554911911,5.13032502,88.102,88.042,0.5]
[1770554913990,39.72713136,88.101,88.044,0.5]
[1770554914391,5.13032502,88.098,88.044,0.5]
[1770554915011,39.72713136,88.101,88.044,0.5]
[1770554916301,28.3765224,88.101,88.046,0.5]
[1770554917894,28.3765224,88.101,88.048,0.5]
[1770554919898,28.3765224,88.101,88.05,0.5]
[1770554923715,28.3765224,88.101,88.052,0.5]
[1770554924697,11.34983599,88.107,88.054,0.5]
[1770554926608,28.37426794,88.108,88.054,0.5]
[1770554926828,5.13032502,88.105,88.054,0.5]
[1770554928724,5.13032502,88.101,88.054,0.5]
[1770554929525,5.13032502,88.101,88.055,0.5]
[1770554930806,39.72758228,88.1,88.055,0.5]
[1770554931725,39.72758228,88.1,88.057,0.5]
[1770554933026,56.74273976,88.117,88.057,0.5]
[1770554933526,56.74273976,88.117,88.059,0.5]
[1770554933703,102.9,88.116,88.059,0.5]
[1770554935109,5.13032502,88.109,88.059,0.5]
[1770554936409,39.72397511,88.108,88.059,0.5]
[1770554938330,28.37426794,88.108,88.059,0.5]
[1770554939235,28.37426794,88.108,88.061,0.5]
[1770554940418,5.13032502,88.124,88.063,0.5]
[1770554941843,5.13032502,88.123,88.063,0.5]
[1770554942934,5.13032502,88.122,88.065,0.5]
[1770554943131,39.71631205,88.125,88.065,0.5]
[1770554944911,39.71631205,88.125,88.067,0.5]
[1770554946244,39.71631205,88.125,88.068,11.35486215]
[1770554946423,96.4539007,88.125,88.069,0.5]
[1770554946622,5.13032502,88.121,88.024,0.5]
[1770554947741,5.13032502,88.117,88.029,0.5]
[1770554947941,5.13032502,88.117,88.031,0.5]
[1770554949847,5.13032502,88.113,88.033,0.5]
[1770554951844,5.13032502,88.105,88.035,0.5]
[1770554956727,5.13032502,88.101,88.037,0.5]
[1770554957044,102.9,88.1,88.037,0.5]
[1770554958651,96.48236641,88.099,88.037,0.5]
[1770554958957,5.13032502,88.095,88.022,0.5]
[1770554959547,5.13032502,88.095,88.029,0.5]
[1770554959759,5.13032502,88.095,88.034,0.5]
[1770554961254,5.13032502,88.091,88.034,0.5]
[1770554962437,11.35202633,88.09,88.034,0.5]
[1770554962751,96.49222385,88.09,88.034,0.5]
[1770554964653,85.14019752,88.09,88.036,0.5]
[1770554964956,28.38006584,88.09,88.036,0.5]
[1770554965447,11.35151088,88.094,88.036,0.5]
[1770554966850,11.35151088,88.094,88.038,0.5]
[1770554967752,11.35070408,88.101,88.041,0.5]
[1770554967954,11.34700268,88.129,88.041,0.5]
[1770554968171,11.34700268,88.129,88.052,0.5]
[1770554968844,11.34700268,88.129,88.042,23.9844683]
[1770554968845,5.13032502,88.165,88.057,0.5]
[1770554969047,56.71046164,88.168,88.057,0.5]
[1770554969651,5.13032502,88.165,88.057,0.5]
[1770554970551,5.13032502,88.165,88.064,0.5]
[1770554970749,5.13032502,88.161,88.069,0.5]
[1770554971440,39.69874324,88.164,88.069,0.5]
[1770554971641,39.69874324,88.164,88.076,0.5]
[1770554972866,5.13032502,88.184,88.081,0.5]
[1770554973061,102.9,88.179,88.081,0.5]
[1770554974166,39.68838944,88.187,88.094,0.5]
[1770554974367,39.68838944,88.187,88.105,0.5]
[1770554974777,39.68838944,88.187,88.11,0.5]
[1770554977082,39.68838944,88.187,88.115,0.5]
[1770554978584,5.13032502,88.184,88.115,0.5]
[1770554979403,5.13032503,88.18,88.115,0.5]
[1770554979678,5.13032503,88.18,88.116,0.5]
[1770554981076,5.13032503,88.18,88.117,0.5]
[1770554982677,5.13032503,88.18,88.111,28.37319438]
[1770554982678,39.69199015,88.179,88.119,0.5]
[1770554984603,142.59199015,88.179,88.119,0.5]
[1770554985895,142.59199015,88.179,88.121,0.5]
[1770554986802,142.59199015,88.179,88.123,0.5]
[1770554988802,140.09199015,88.179,88.123,0.5]
[1770554989099,5.13032502,88.176,88.123,0.5]
[1770554989405,5.13032502,88.176,88.114,0.5]
[1770554990205,5.13032502,88.176,88.119,0.5]
[1770554990402,196.79483323,88.179,88.119,0.5]
[1770554992007,196.79483323,88.179,88.124,0.5]
[1770554993810,140.09199015,88.179,88.126,0.5]
[1770554994718,140.09199015,88.179,88.109,0.5]
[1770554996217,196.79483323,88.179,88.112,11.34917758]
[1770554996397,196.79483323,88.179,88.113,0.5]
[1770554998493,196.79483323,88.179,88.115,0.5]
[1770555000813,111.74056861,88.179,88.117,0.5]
[1770555001116,102.9,88.179,88.117,0.5]
[1770555001694,11.34069722,88.178,88.117,0.5]
[1770555001897,39.69244028,88.178,88.117,0.5]
[1770555002411,5.13032502,88.175,88.117,0.5]
[1770555002609,5.13032502,88.175,88.087,0.5]
[1770555003011,5.13032502,88.171,88.087,0.5]
[1770555003323,5.13032502,88.171,88.079,0.5]
[1770555003617,5.13032502,88.171,88.089,0.5]
[1770555004918,5.13032502,88.167,88.091,0.5]
[1770555006318,5.13032502,88.163,88.093,0.5]
[1770555008415,5.13032502,88.163,88.095,0.5]
[1770555008416,44.82996885,88.162,88.095,0.5]
[1770555009500,11.34275538,88.162,88.095,0.5]
[1770555009900,11.34219554,88.167,88.098,0.5]
[1770555010501,1e-08,88.18,88.1,0.5]
[1770555011317,1e-08,88.18,88.103,0.5]
[1770555012507,1e-08,88.18,88.094,5.36086188]
[1770555012508,1e-08,88.18,88.108,0.5]
[1770555014021,1e-08,88.18,88.113,0.5]
[1770555016938,1e-08,88.18,88.118,0.5]
[1770555019728,1e-08,88.18,88.12,0.5]
[1770555021115,1e-08,88.18,88.121,11.34803281]
[1770555021314,1e-08,88.18,88.122,0.5]
[1770555022412,102.9,88.179,88.122,0.5]
[1770555023429,39.69244028,88.178,88.122,0.5]
[1770555025107,39.69244028,88.178,88.124,0.5]
[1770555026333,1e-08,88.18,88.126,0.5]
[1770555027813,1e-08,88.18,88.128,0.5]
[1770555028014,1e-08,88.18,88.113,0.5]
[1770555028219,1e-08,88.18,88.127,0.5]
[1770555030026,1e-08,88.18,88.129,0.5]
[1770555032037,1e-08,88.18,88.131,0.5]
[1770555034739,1e-08,88.18,88.133,0.5]
[1770555037937,1e-08,88.18,88.119,0.5]
[1770555038641,1e-08,88.18,88.111,0.5]
[1770555039543,1e-08,88.18,88.054,5.36086188]
[1770555039544,1e-08,88.18,88.11,0.5]
[1770555039747,1e-08,88.18,88.118,0.5]
[1770555042052,1e-08,88.18,88.12,0.5]
[1770555044629,5.13032502,88.176,88.12,0.5]
[1770555045332,5.13032502,88.172,88.102,0.5]
[1770555045743,5.13032502,88.172,88.103,0.5]
[1770555045951,102.9,88.171,88.103,0.5]
[1770555046252,102.9,88.171,88.105,11.35007925]
[1770555046453,102.9,88.171,88.106,0.5]
[1770555046653,108.03032502,88.172,88.119,0.5]
[1770555047650,108.03032502,88.172,88.082,56.76471856]
[1770555047651,96.40357939,88.171,88.105,0.5]
[1770555047862,199.30357939,88.171,88.105,0.5]
[1770555050137,199.30357939,88.171,88.106,11.34996481]
[1770555050347,199.30357939,88.171,88.107,0.5]
[1770555053239,199.30357939,88.171,88.069,5.13032502]
[1770555053444,5.13032502,88.167,88.099,0.5]
[1770555053756,5.13032502,88.163,88.099,0.5]
[1770555054634,5.13032502,88.159,88.099,0.5]
[1770555055650,5.13032502,88.159,88.101,0.5]
[1770555056556,39.69964383,88.162,88.102,11.35048012]
[1770555056859,39.69964383,88.162,88.103,0.5]
[1770555058852,39.69964383,88.162,88.105,0.5]
[1770555060166,39.69964383,88.162,88.107,0.5]
[1770555061567,0.47627334,88.161,88.079,5.13032502]
[1770555061743,0.47627334,88.157,88.06,11.35584107]
[1770555062079,5.13032502,88.158,88.01,40.88]
[1770555062080,0.47627334,88.152,88.054,11.3566212]
[1770555063570,0.47627334,88.152,88.055,0.45055937]
[1770555064248,0.47627334,88.147,88.057,0.45055937]
[1770555066571,0.47405325,88.145,88.031,0.4624196]
[1770555066773,68.95405325,88.142,88.031,0.4624196]
[1770555067083,0.47405325,88.138,88.031,0.4624196]
[1770555068187,0.47405325,88.137,88.01,11.36230834]
[1770555068676,0.47405325,88.132,88.004,5.13032502]
[1770555070298,0.47405325,88.132,88.005,0.4624196]
[1770555070680,58.95265582,88.163,88.01,0.4624196]
[1770555070681,0.47405325,88.127,88.01,0.4624196]
[1770555071397,0.47405325,88.127,88.013,5.13032502]
[1770555071691,96.45280619,88.126,88.016,39.76549717]
[1770555071890,0.47405325,88.122,88.017,0.4624196]
[1770555073798,0.46563533,88.117,88.019,0.48058317]
[1770555075278,0.46563533,88.112,88.021,0.48058317]
[1770555077510,0.46563533,88.107,88.023,0.48058317]
[1770555078315,0.46563533,88.105,88.023,0.48058317]
[1770555078609,0.46563533,88.102,88.023,0.48058317]
[1770555079386,102.9,88.106,88.026,0.48058317]
[1770555079606,114.24996697,88.106,88.031,0.48058317]
[1770555080499,114.24996697,88.106,88.036,0.48058317]
[1770555080721,11.34922169,88.112,88.036,0.48058317]
[1770555083101,11.34764649,88.124,88.046,0.48058317]
[1770555085616,0.46563533,88.133,88.051,0.48058317]
[1770555086313,0.46563533,88.133,88.05,5.13032502]
[1770555086523,0.46563533,88.13,88.03,0.48058317]
[1770555086893,0.46563533,88.13,88.026,11.36025481]
[1770555087302,0.46563533,88.13,88.031,11.35961287]
[1770555087494,0.46563533,88.13,88.042,0.48058317]
[1770555087716,0.46563533,88.125,88.042,0.48058317]
[1770555088319,0.46563533,88.125,88.044,0.48058317]
[1770555089995,0.46563533,88.12,88.044,0.48058317]
[1770555090315,0.46563533,88.12,88.035,11.35910905]
[1770555090494,0.46563533,88.12,88.034,0.48058317]
[1770555091795,0.46563533,88.115,88.034,0.48058317]
[1770555092109,0.46563533,88.115,88.035,0.48058317]
[1770555093243,0.46563533,88.11,88.037,0.48058317]
[1770555094017,0.46563533,88.108,88.037,0.48058317]
[1770555095919,0.45219929,88.106,88.039,0.48207677]
[1770555097915,39.72532772,88.105,88.04,11.35847342]
[1770555098094,0.45219929,88.104,88.041,0.48207677]
[1770555098606,0.45219929,88.099,88.032,0.48207677]
[1770555100418,0.45219929,88.097,88.032,0.48207677]
[1770555101823,0.45219929,88.095,88.032,0.48207677]
[1770555105104,0.45219929,88.093,88.032,0.48207677]
[1770555106323,0.45219929,88.09,88.024,0.48207677]
[1770555106819,0.45219929,88.09,88.028,0.48207677]
[1770555107119,0.45219929,88.085,88.028,0.48207677]
[1770555109032,39.7347986,88.084,88.03,0.48207677]
[1770555109227,0.45219929,88.083,88.03,0.48207677]
[1770555111142,0.45219929,88.081,88.032,0.48207677]
[1770555112235,0.45219929,88.079,88.032,0.48207677]
[1770555112744,114.25331516,88.08,88.034,0.48207677]
[1770555114215,0.45219929,88.079,88.036,0.48207677]
[1770555114737,0.45219929,88.077,88.028,0.48207677]
[1770555116537,0.45219929,88.075,88.03,0.48207677]
[1770555116831,39.73840773,88.076,88.03,0.48207677]
[1770555117050,11.35239867,88.088,88.03,0.48207677]
[1770555117213,11.80459796,88.088,88.03,0.48207677]
[1770555118638,0.45219929,88.103,88.035,0.48207677]
[1770555119041,11.35022246,88.104,88.035,0.48207677]
[1770555119419,0.45219929,88.116,88.035,0.48207677]
[1770555119420,11.34880553,88.115,88.035,0.48207677]
[1770555120415,0.45219929,88.125,88.04,0.48207677]
[1770555120617,0.45219929,88.142,88.049,0.48207677]
[1770555123721,11.34545784,88.141,88.05,96.53605904]
[1770555123928,0.45219929,88.14,88.054,0.48207677]
[1770555125627,39.70910245,88.141,88.054,0.48207677]
[1770555125628,0.45219929,88.138,88.054,0.48207677]
[1770555126032,102.9,88.139,88.053,5.13032502]
[1770555126033,102.9,88.139,88.056,0.48185203]
[1770555126240,11.8106533,88.15,88.068,0.48185203]
[1770555126536,0.46628157,88.149,88.068,0.48185203]
[1770555128240,11.81083845,88.148,88.073,0.48185203]
[1770555128535,0.46628157,88.147,88.073,0.48185203]
[1770555130140,56.70670726,88.173,88.072,5.13032502]
[1770555130141,0.46628157,88.145,88.075,0.48185203]
[1770555131837,0.4842086,88.142,88.075,0.48185203]
[1770555132020,0.4842086,88.142,88.069,0.45759473]
[1770555132221,0.4842086,88.137,88.069,0.45759473]
[1770555132840,0.4842086,88.137,88.052,28.39213038]
[1770555132841,0.4842086,88.137,88.071,0.45759473]
[1770555134418,0.4842086,88.135,88.071,0.45759473]
[1770555135544,0.4842086,88.132,88.063,0.45759473]
[1770555136230,0.4842086,88.132,88.056,11.81390266]
[1770555136437,5.13032502,88.128,88.055,0.45759473]
[1770555136640,0.4842086,88.127,88.055,0.45759473]
[1770555137341,0.4842086,88.127,88.056,0.45759473]
[1770555138545,0.4842086,88.125,88.058,0.45759473]
[1770555138748,11.34738896,88.126,88.061,0.45759473]
[1770555139142,0.4842086,88.125,88.061,0.45759473]
[1770555141041,11.34764649,88.124,88.066,0.45759473]
[1770555142124,0.4842086,88.123,88.066,0.45759473]
[1770555143525,0.4842086,88.121,88.068,0.45759473]
[1770555146419,11.34816159,88.12,88.069,39.74156627]
[1770555146646,0.4842086,88.119,88.07,0.45759473]
[1770555148328,102.9,88.136,88.072,0.45759473]
[1770555148329,0.4842086,88.117,88.072,0.45759473]
[1770555148525,0.4842086,88.143,88.072,0.45759473]
[1770555148724,56.70991066,88.169,88.071,68.12685219]
[1770555148725,0.4842086,88.139,88.075,0.45759473]
[1770555149745,0.4842086,88.139,88.08,0.45759473]
[1770555149948,11.34563784,88.14,88.08,0.45759473]
[1770555150837,0.4842086,88.139,88.08,0.45759473]
[1770555154853,0.4842086,88.137,88.085,0.45759473]
[1770555155247,0.4842086,88.135,88.085,0.45759473]
[1770555157554,102.9,88.136,88.076,56.76915391]
[1770555157555,0.47651447,88.133,88.087,0.4799688]
[1770555159435,103.37651447,88.136,88.087,0.4799688]
[1770555159855,0.47651447,88.135,88.089,0.4799688]
[1770555160742,0.47651447,88.16,88.092,0.4799688]
[1770555161136,102.9,88.168,88.091,5.13032502]
[1770555161137,0.47651447,88.168,88.094,0.4799688]
[1770555161734,0.47651447,88.168,88.099,0.4799688]
[1770555161934,0.47651447,88.188,88.101,0.4799688]
[1770555162229,0.47651447,88.178,88.103,0.4799688]
[1770555162430,0.47651447,88.178,88.105,0.4799688]
[1770555162632,0.47651447,88.178,88.107,0.4799688]
[1770555162853,0.47651447,88.19,88.109,0.4799688]
[1770555164338,0.47651447,88.188,88.114,0.4799688]
[1770555164952,0.47651447,88.188,88.113,5.13032502]
[1770555165141,0.47651447,88.188,88.078,12.33354823]
[1770555165142,0.47651447,88.185,88.095,0.4799688]
[1770555165340,0.47651447,88.175,88.095,0.4799688]
[1770555165660,0.47651447,88.171,88.095,0.4799688]
[1770555165837,0.47651447,88.17,88.095,0.4799688]
[1770555166165,0.47651447,88.166,88.087,0.4799688]
[1770555166462,0.47651447,88.166,88.089,0.4799688]
[1770555166463,0.47651447,88.161,88.089,0.4799688]
[1770555167350,0.47651447,88.161,88.092,0.4799688]
[1770555168360,0.47651447,88.159,88.094,0.4799688]
[1770555169847,0.47651447,88.164,88.094,0.4799688]
[1770555170468,0.47651447,88.159,88.064,11.35532717]
[1770555170784,0.47651447,88.159,87.98,45.46463103]
[1770555170785,0.47651447,88.155,88.066,0.4799688]
[1770555170950,0.47651447,88.151,88.059,11.35590012]
[1770555171260,0.47651447,88.15,88.06,0.4799688]
[1770555171468,0.47651447,88.146,88.06,0.4799688]
[1770555171666,0.47651447,88.145,88.06,0.4799688]
[1770555171846,0.47651447,88.141,88.06,0.4799688]
[1770555172043,0.47651447,88.14,88.061,0.4799688]
[1770555172247,0.47651447,88.136,88.061,0.4799688]
[1770555172475,0.47651447,88.131,88.061,0.4799688]
[1770555172763,0.47651447,88.13,88.061,0.4799688]
[1770555174150,0.47651447,88.13,88.063,0.4799688]
[1770555174769,0.47651447,88.128,88.065,0.4799688]
[1770555178067,0.47651447,88.126,88.065,0.4799688]
[1770555178259,0.47651447,88.126,88.067,0.4799688]
[1770555178465,0.47651447,88.126,88.053,28.39193784]
[1770555178657,0.47651447,88.124,88.045,0.4799688]
[1770555178969,0.47651447,88.122,88.045,0.4799688]
[1770555179155,0.47651447,88.122,88.06,11.35578121]
[1770555179156,0.47651447,88.121,88.06,11.35578121]
[1770555179359,0.47651447,88.12,88.06,11.35578121]
[1770555179672,0.47651447,88.119,88.061,0.4799688]
[1770555179869,0.47651447,88.119,88.066,11.35512002]
[1770555180075,0.47651447,88.119,88.067,0.4799688]
[1770555180377,0.47651447,88.117,88.067,0.4799688]
[1770555180955,0.47651447,88.117,88.069,0.4799688]
[1770555181477,0.47651447,88.117,88.051,28.39239313]
[1770555181478,0.47651447,88.117,88.061,0.4799688]
[1770555182071,0.47651447,88.117,88.069,0.4799688]
[1770555182764,0.47651447,88.115,88.071,0.4799688]
[1770555183382,7.33768627,88.12,88.071,0.4799688]
[1770555183586,11.34829038,88.119,88.071,0.4799688]
[1770555183961,0.47651447,88.118,88.071,0.4799688]
[1770555184690,11.34854795,88.117,88.073,0.4799688]
[1770555185284,11.82506242,88.117,88.073,0.4799688]
[1770555185583,0.47651447,88.116,88.073,0.4799688]
[1770555185979,0.48352928,88.114,88.067,11.35488766]
[1770555186165,0.48352928,88.114,88.072,11.35434644]
[1770555186364,0.48352928,88.114,88.073,0.47904397]
[1770555187065,0.48352928,88.112,88.075,0.47904397]
[1770555188890,11.34932074,88.111,88.077,0.47904397]
[1770555189083,0.48352928,88.11,88.077,0.47904397]
[1770555190487,102.9,88.115,88.077,0.47904397]
[1770555190694,7.33768627,88.12,88.077,0.47904397]
[1770555190986,7.33768627,88.12,88.069,5.13032502]
[1770555190987,7.33768627,88.12,88.079,0.47904397]
[1770555192091,0.48352928,88.139,88.083,0.47904397]
[1770555192493,102.9,88.147,88.083,0.47904397]
[1770555192875,11.34481428,88.146,88.088,0.47573036]
[1770555193072,0.4604729,88.145,88.088,0.47573036]
[1770555194300,0.4604729,88.143,88.09,0.47573036]
[1770555195097,102.9,88.147,88.089,39.73254321]
[1770555195098,102.9,88.147,88.093,0.47573036]
[1770555195880,11.34481428,88.146,88.093,0.47573036]
[1770555196081,11.80528718,88.146,88.093,0.47573036]
[1770555197085,11.80528718,88.146,88.098,0.47573036]
[1770555197286,0.4604729,88.145,88.098,0.47573036]
[1770555200398,0.4604729,88.145,88.097,5.13032502]
[1770555200399,0.4604729,88.143,88.1,0.47573036]
[1770555203090,0.4604729,88.14,88.102,0.47573036]
[1770555203291,0.4604729,88.139,88.102,0.47573036]
[1770555205012,0.4604729,88.137,88.098,5.13032502]
[1770555205182,0.4604729,88.137,88.099,0.47573036]
[1770555207009,0.4604729,88.135,88.101,0.47573036]
[1770555207412,102.9,88.14,88.101,0.47573036]